{"text_format":"3","workbook":"xlsx","n_sheets":6,"sheets":["Pārdošanas zvanu žurnāls","Klienta kontaktinformācija","Pirms zvana","Pirmā zvanīšanas reize","Pārdošanas informācija","Sekojums"],"not_rendered":{"defined_names":14},"read":"whole","date_system":"1900"}

{"sheet":"Pārdošanas zvanu žurnāls","index":0,"n_rows":13,"n_cols":7,"rows_kept":13}
[null," Uzņēmuma nosaukums"]
[null,"Pārdošanas zvanu žurnāls"]
[null,"Zvana nr.","Klients","Uzņēmums","Datums","Laiks","Piezīmes"]
[null,1,"Alfons Vītols",{"$f":"IF(Pārdošanas_zvanu_žurnāls[[#This Row],[Klients]]=\"\",\"\",IFERROR(VLOOKUP(Pārdošanas_zvanu_žurnāls[[#This Row],[Klients]],KlientaKontaktinformācija[],2,0),\"Not Found\"))","v":"Proseware"},{"$f":"TODAY()-5","v":"2016-10-09"},"08:30:00"]
[null,2,"Filips Vanags",{"$f":"IF(Pārdošanas_zvanu_žurnāls[[#This Row],[Klients]]=\"\",\"\",IFERROR(VLOOKUP(Pārdošanas_zvanu_žurnāls[[#This Row],[Klients]],KlientaKontaktinformācija[],2,0),\"Not Found\"))","v":"Litware"},{"$f":"TODAY()-5","v":"2016-10-09"},"09:00:00"]
[null,3,"Agrita Zvirbule",{"$f":"IF(Pārdošanas_zvanu_žurnāls[[#This Row],[Klients]]=\"\",\"\",IFERROR(VLOOKUP(Pārdošanas_zvanu_žurnāls[[#This Row],[Klients]],KlientaKontaktinformācija[],2,0),\"Not Found\"))","v":"Northwind Traders"},"2016-10-09","09:30:00"]
[null,4,"Olafs Paegle",{"$f":"IF(Pārdošanas_zvanu_žurnāls[[#This Row],[Klients]]=\"\",\"\",IFERROR(VLOOKUP(Pārdošanas_zvanu_žurnāls[[#This Row],[Klients]],KlientaKontaktinformācija[],2,0),\"Not Found\"))","v":"Izdevniecība Lucerne"},"2016-10-09","10:00:00"]
[null,5,"Ilgonis Purmals",{"$f":"IF(Pārdošanas_zvanu_žurnāls[[#This Row],[Klients]]=\"\",\"\",IFERROR(VLOOKUP(Pārdošanas_zvanu_žurnāls[[#This Row],[Klients]],KlientaKontaktinformācija[],2,0),\"Not Found\"))","v":"Māras ceļojumi"},"2016-10-09","10:30:00"]
[null,6,"Alfons Vītols",{"$f":"IF(Pārdošanas_zvanu_žurnāls[[#This Row],[Klients]]=\"\",\"\",IFERROR(VLOOKUP(Pārdošanas_zvanu_žurnāls[[#This Row],[Klients]],KlientaKontaktinformācija[],2,0),\"Not Found\"))","v":"Proseware"},{"$f":"TODAY()-3","v":"2016-10-11"},"11:00:00"]
[null,7,"Filips Vanags",{"$f":"IF(Pārdošanas_zvanu_žurnāls[[#This Row],[Klients]]=\"\",\"\",IFERROR(VLOOKUP(Pārdošanas_zvanu_žurnāls[[#This Row],[Klients]],KlientaKontaktinformācija[],2,0),\"Not Found\"))","v":"Litware"},{"$f":"TODAY()-3","v":"2016-10-11"},"11:30:00"]
[null,8,"Alfons Vītols",{"$f":"IF(Pārdošanas_zvanu_žurnāls[[#This Row],[Klients]]=\"\",\"\",IFERROR(VLOOKUP(Pārdošanas_zvanu_žurnāls[[#This Row],[Klients]],KlientaKontaktinformācija[],2,0),\"Not Found\"))","v":"Proseware"},{"$f":"TODAY()-1","v":"2016-10-13"},"12:00:00"]
[null,9,"Ilgonis Purmals",{"$f":"IF(Pārdošanas_zvanu_žurnāls[[#This Row],[Klients]]=\"\",\"\",IFERROR(VLOOKUP(Pārdošanas_zvanu_žurnāls[[#This Row],[Klients]],KlientaKontaktinformācija[],2,0),\"Not Found\"))","v":"Māras ceļojumi"},{"$f":"TODAY()-1","v":"2016-10-13"},"12:30:00"]
[null,10,"Ilgonis Purmals",{"$f":"IF(Pārdošanas_zvanu_žurnāls[[#This Row],[Klients]]=\"\",\"\",IFERROR(VLOOKUP(Pārdošanas_zvanu_žurnāls[[#This Row],[Klients]],KlientaKontaktinformācija[],2,0),\"Not Found\"))","v":"Māras ceļojumi"},{"$f":"TODAY()","v":"2016-10-14"},"13:00:00"]

{"sheet":"Klienta kontaktinformācija","index":1,"n_rows":8,"n_cols":8,"rows_kept":8}
[null,{"$f":"UzņēmumaNosaukums","v":" Uzņēmuma nosaukums"}]
[null,"Klienta kontaktinformācija"]
[null,"Klienta vārds","Uzņēmuma nosaukums","Adrese","Pilsēta, pasta indekss","Primārais tālruņa numurs","Sekundārais tālruņa numurs","E-pasts"]
[null,"Filips Vanags","Litware","Galvenā iela 100","Mazirbe, LV-123456","(541) 555-0135","(541) 555-0136","filips@litwareinc.com"]
[null,"Olafs Paegle","Izdevniecība Lucerne","Otrā iela 567","Rīga, LV-23456","(425) 555-0198","(425) 555-0199","olafs@lucerne.com"]
[null,"Ilgonis Purmals","Māras ceļojumi","Lielā iela 987","Liepāja, LV-34567","(888) 555-0125","(888) 555-0126","ilgonis@marascelojumi.com"]
[null,"Agrita Zvirbule","Northwind Traders","Brīvības iela 890","Jelgava, LV-45678","(541) 555-0175","(541) 555-0176","agrita@northwindtraders.com"]
[null,"Alfons Vītols","Proseware","Mazā iela 123","Jūrmala, LV-56789","(509) 555-0150","(509) 555-0151","alfons@proseware.com"]

{"sheet":"Pirms zvana","index":2,"n_rows":13,"n_cols":3,"rows_kept":13}
[null,{"$f":"UzņēmumaNosaukums","v":" Uzņēmuma nosaukums"}]
[null,"Pārdošanas zvanu kontrolsaraksts"]
[null,"Izvēles rūtiņa","Pirms zvana"]
[null,null,"Pārskatīt klienta vēsturi"]
[null,null,"Pārskatīt klienta darba devēja vēsturi"]
[null,null,"Pārskatīt prioritātes un pārdošanas stratēģijas"]
[null,null,"Pievienot vienumu"]
[null,null,"Pievienot vienumu"]
[null,null,"Pievienot vienumu"]
[null,null,"Pievienot vienumu"]
[null,null,"Pievienot vienumu"]
[null,null,"Pievienot vienumu"]
[null,null,"Pievienot vienumu"]

{"sheet":"Pirmā zvanīšanas reize","index":3,"n_rows":13,"n_cols":3,"rows_kept":13}
[null,{"$f":"UzņēmumaNosaukums","v":" Uzņēmuma nosaukums"}]
[null,"Pārdošanas zvanu kontrolsaraksts"]
[null,"Izvēles rūtiņa","Pirmā zvanīšanas reize"]
[null,null,"Tiešs zvans attiecīgajai personai"]
[null,null,"Skaidrs ievads"]
[null,null,"Pievienot vienumu"]
[null,null,"Pievienot vienumu"]
[null,null,"Pievienot vienumu"]
[null,null,"Pievienot vienumu"]
[null,null,"Pievienot vienumu"]
[null,null,"Pievienot vienumu"]
[null,null,"Pievienot vienumu"]
[null,null,"Pievienot vienumu"]

{"sheet":"Pārdošanas informācija","index":4,"n_rows":13,"n_cols":3,"rows_kept":13}
[null,{"$f":"UzņēmumaNosaukums","v":" Uzņēmuma nosaukums"}]
[null,"Pārdošanas zvanu kontrolsaraksts"]
[null,"Izvēles rūtiņa","Pārdošanas informācija"]
[null,null,"Skaidrs un pārliecinošs ievads par produktu/pakalpojumu"]
[null,null,"Sniegt pamatinformāciju"]
[null,null,"Informēt par tīmekļa resursiem (piemēram, tīmekļa vietni, sociālajiem tīkliem)"]
[null,null,"Pievienot vienumu"]
[null,null,"Pievienot vienumu"]
[null,null,"Pievienot vienumu"]
[null,null,"Pievienot vienumu"]
[null,null,"Pievienot vienumu"]
[null,null,"Pievienot vienumu"]
[null,null,"Pievienot vienumu"]

{"sheet":"Sekojums","index":5,"n_rows":13,"n_cols":3,"rows_kept":13}
[null,{"$f":"UzņēmumaNosaukums","v":" Uzņēmuma nosaukums"}]
[null,"Pārdošanas zvanu kontrolsaraksts"]
[null,"Izvēles rūtiņa","Papildu informācija"]
[null,null,"Klienta kontaktinformācija"]
[null,null,"Klienta personiskā informācija"]
[null,null,"Klienta izvēles"]
[null,null,"Vai atkārtota saziņa?"]
[null,null,"Vai pārdošana veikta?"]
[null,null,"Pievienot vienumu"]
[null,null,"Pievienot vienumu"]
[null,null,"Pievienot vienumu"]
[null,null,"Pievienot vienumu"]
[null,null,"Pievienot vienumu"]